fUST/lending_fUST_20260621
["ID","MTS","AMOUNT","RATE_DAILY","PERIOD"]
[425883054,1782021039000,-510.38654806,0.00016438,2]
[425883050,1782021039000,-500.0,0.00016438,2]
[425883055,1782021039000,-500.0,0.00016438,2]
[425883058,1782021039000,-500.0,0.00016438,2]
[425883059,1782021039000,-500.0,0.00016438,2]
[425883045,1782021039000,-500.0,0.00016438,2]
[425883060,1782021039000,-500.0,0.00016438,2]
[425883061,1782021039000,-500.0,0.00016438,2]
[425883063,1782021039000,-500.0,0.00016438,2]
[425883066,1782021039000,-521.44053227,0.00016438,2]
[425883062,1782021039000,-516.19029667,0.00016438,2]
[425883067,1782021039000,-500.0,0.00016438,2]
[425883065,1782021039000,-500.0,0.00016438,2]
[425883064,1782021039000,-500.0,0.00016438,2]
[425883068,1782021039000,-511.0235058,0.00016438,2]
[425883070,1782021039000,-500.0,0.00016438,2]
[425883071,1782021039000,-500.0,0.00016438,2]
[425883072,1782021039000,-500.0,0.00016438,2]
[425883069,1782021039000,-500.0,0.00016438,2]
[425883006,1782021039000,-500.0,0.00016438,2]
[425883057,1782021039000,-513.05032807,0.00016438,2]
[425883047,1782021039000,-156.490508,0.00016438,2]
[425883056,1782021039000,-500.0,0.00016438,2]
[425883040,1782021039000,-500.0,0.00016438,2]
[425883042,1782021039000,-500.0,0.00016438,2]
[425883007,1782021039000,-500.0,0.00016438,2]
[425883009,1782021039000,-500.0,0.00016438,2]
[425883010,1782021039000,-500.0,0.00016438,2]
[425883011,1782021039000,-500.0,0.00016438,2]
[425883014,1782021039000,-518.07520966,0.00016438,2]
[425883013,1782021039000,-511.46986727,0.00016438,2]
[425883015,1782021039000,-500.0,0.00016438,2]
[425883016,1782021039000,-500.0,0.00016438,2]
[425883017,1782021039000,-505.17335309,0.00016438,2]
[425883019,1782021039000,-610.00469459,0.00016438,2]
[425883018,1782021039000,-500.0,0.00016438,2]
[425883020,1782021039000,-500.0,0.00016438,2]
[425883022,1782021039000,-500.0,0.00016438,2]
[425883026,1782021039000,-513.96248832,0.00016438,2]
[425883005,1782021039000,-531.31425544,0.00016438,2]
[425883041,1782021039000,-500.0,0.00016438,2]
[425883038,1782021039000,-339.49793757,0.00016438,2]
[425883037,1782021039000,-500.0,0.00016438,2]
[425883039,1782021039000,-500.0,0.00016438,2]
[425883024,1782021039000,-539.49924728,0.00016438,2]
[425883035,1782021039000,-500.0,0.00016438,2]
[425883033,1782021039000,-500.0,0.00016438,2]
[425883036,1782021039000,-619.3683129,0.00016438,2]
[425883032,1782021039000,-517.1299472,0.00016438,2]
[425883031,1782021039000,-500.0,0.00016438,2]
[425883034,1782021039000,-260.0,0.00016438,2]
[425883029,1782021039000,-500.0,0.00016438,2]
[425883028,1782021039000,-500.0,0.00016438,2]
[425883030,1782021039000,-500.0,0.00016438,2]
[425883116,1782021040000,-511.55061952,0.00016438,2]
[425883117,1782021040000,-500.0,0.00016438,2]
[425883115,1782021040000,-500.0,0.00016438,2]
[425883113,1782021040000,-500.0,0.00016438,2]
[425883114,1782021040000,-515.42138441,0.00016438,2]
[425883105,1782021040000,-500.0,0.00016438,2]
[425883109,1782021040000,-500.0,0.00016438,2]
[425883110,1782021040000,-500.0,0.00016438,2]
[425883108,1782021040000,-500.0,0.00016438,2]
[425883106,1782021040000,-500.0,0.00016438,2]
[425883107,1782021040000,-500.0,0.00016438,2]
[425883112,1782021040000,-500.0,0.00016438,2]
[425883111,1782021040000,-512.92934972,0.00016438,2]
[425883118,1782021040000,-528.72521038,0.00016438,2]
[425883130,1782021040000,-500.0,0.00016438,2]
[425883119,1782021040000,-625.9913048,0.00016438,2]
[425883124,1782021040000,-500.0,0.00016438,2]
[425883122,1782021040000,-500.0,0.00016438,2]
[425883123,1782021040000,-500.0,0.00016438,2]
[425883121,1782021040000,-500.0,0.00016438,2]
[425883125,1782021040000,-500.0,0.00016438,2]
[425883128,1782021040000,-500.0,0.00016438,2]
[425883126,1782021040000,-512.80513418,0.00016438,2]
[425883127,1782021040000,-500.0,0.00016438,2]
[425883131,1782021040000,-500.0,0.00016438,2]
[425883129,1782021040000,-501.97,0.00016438,2]
[425883132,1782021040000,-500.0,0.00016438,2]
[425883135,1782021040000,-500.0,0.00016438,2]
[425883120,1782021040000,-500.0,0.00016438,2]
[425883104,1782021040000,-500.0,0.00016438,2]
[425883133,1782021040000,-500.0,0.00016438,2]
[425883102,1782021040000,-513.80138669,0.00016438,2]
[425883073,1782021040000,-500.0,0.00016438,2]
[425883074,1782021040000,-500.0,0.00016438,2]
[425883077,1782021040000,-3267.184926,0.00016438,2]
[425883075,1782021040000,-3267.184926,0.00016438,2]
[425883076,1782021040000,-3267.184926,0.00016438,2]
[425883079,1782021040000,-3267.184926,0.00016438,2]
[425883078,1782021040000,-516.85566395,0.00016438,2]
[425883080,1782021040000,-3267.184926,0.00016438,2]
[425883081,1782021040000,-3267.184926,0.00016438,2]
[425883083,1782021040000,-3267.184926,0.00016438,2]
[425883082,1782021040000,-3267.184926,0.00016438,2]
[425883085,1782021040000,-500.0,0.00016438,2]
[425883087,1782021040000,-500.0,0.00016438,2]
[425883088,1782021040000,-3267.184926,0.00016438,2]
[425883084,1782021040000,-500.0,0.00016438,2]
[425883086,1782021040000,-3267.184926,0.00016438,2]
[425883090,1782021040000,-500.0,0.00016438,2]
[425883089,1782021040000,-500.0,0.00016438,2]
[425883091,1782021040000,-3267.184926,0.00016438,2]
[425883093,1782021040000,-3267.184926,0.00016438,2]
[425883095,1782021040000,-3267.184926,0.00016438,2]
[425883096,1782021040000,-3267.184926,0.00016438,2]
[425883092,1782021040000,-3267.184926,0.00016438,2]
[425883094,1782021040000,-3267.184926,0.00016438,2]
[425883097,1782021040000,-500.0,0.00016438,2]
[425883100,1782021040000,-500.0,0.00016438,2]
[425883103,1782021040000,-509.32666969,0.00016438,2]
[425883099,1782021040000,-500.0,0.00016438,2]
[425883101,1782021040000,-500.0,0.00016438,2]
[425883098,1782021040000,-500.0,0.00016438,2]
[425883134,1782021040000,-500.0,0.00016438,2]
[425883157,1782021040000,-515.64039393,0.00016438,2]
[425883137,1782021040000,-508.61644466,0.00016438,2]
[425883167,1782021040000,-866.721531,0.00016438,2]
[425883172,1782021040000,-866.721531,0.00016438,2]
[425883171,1782021040000,-866.721531,0.00016438,2]
[425883175,1782021040000,-866.721531,0.00016438,2]
[425883178,1782021040000,-866.721531,0.00016438,2]
[425883177,1782021040000,-866.721531,0.00016438,2]
[425883176,1782021040000,-866.721531,0.00016438,2]
[425883174,1782021040000,-866.721531,0.00016438,2]
[425883179,1782021040000,-866.721531,0.00016438,2]
[425883181,1782021040000,-500.0,0.00016438,2]
[425883183,1782021040000,-526.70010882,0.00016438,2]
[425883180,1782021040000,-866.721531,0.00016438,2]
[425883186,1782021040000,-398.920994,0.00016438,2]
[425883169,1782021040000,-866.721531,0.00016438,2]
[425883185,1782021040000,-398.920994,0.00016438,2]
[425883187,1782021040000,-398.920994,0.00016438,2]
[425883189,1782021040000,-398.920994,0.00016438,2]
[425883188,1782021040000,-500.0,0.00016438,2]
[425883191,1782021040000,-398.920994,0.00016438,2]
[425883194,1782021040000,-398.920994,0.00016438,2]
[425883195,1782021040000,-398.920994,0.00016438,2]
[425883192,1782021040000,-398.920994,0.00016438,2]
[425883190,1782021040000,-398.920994,0.00016438,2]
[425883196,1782021040000,-398.920994,0.00016438,2]
[425883193,1782021040000,-274.19312821,0.00016438,2]
[425883198,1782021040000,-398.920994,0.00016438,2]
[425883197,1782021040000,-398.920994,0.00016438,2]
[425883138,1782021040000,-2537.77,0.00016438,2]
[425883182,1782021040000,-500.0,0.00016438,2]
[425883173,1782021040000,-866.721531,0.00016438,2]
[425883184,1782021040000,-500.0,0.00016438,2]
[425883170,1782021040000,-866.721531,0.00016438,2]
[425883136,1782021040000,-500.0,0.00016438,2]
[425883168,1782021040000,-866.721531,0.00016438,2]
[425883140,1782021040000,-560.36681175,0.00016438,2]
[425883139,1782021040000,-500.0,0.00016438,2]
[425883141,1782021040000,-500.0,0.00016438,2]
[425883142,1782021040000,-500.0,0.00016438,2]
[425883145,1782021040000,-500.0,0.00016438,2]
[425883144,1782021040000,-527.29987392,0.00016438,2]
[425883143,1782021040000,-518.25401357,0.00016438,2]
[425883151,1782021040000,-500.0,0.00016438,2]
[425883150,1782021040000,-500.0,0.00016438,2]
[425883147,1782021040000,-1000.0,0.00016438,2]
[425883148,1782021040000,-500.0,0.00016438,2]
[425883149,1782021040000,-501.3,0.00016438,2]
[425883153,1782021040000,-500.0,0.00016438,2]
[425883146,1782021040000,-500.0,0.00016438,2]
[425883162,1782021040000,-500.0,0.00016438,2]
[425883166,1782021040000,-866.721531,0.00016438,2]
[425883156,1782021040000,-500.0,0.00016438,2]
[425883163,1782021040000,-500.0,0.00016438,2]
[425883164,1782021040000,-394.47040983,0.00016438,2]
[425883165,1782021040000,-866.721531,0.00016438,2]
[425883161,1782021040000,-500.0,0.00016438,2]
[425883160,1782021040000,-500.0,0.00016438,2]
[425883199,1782021040000,-500.0,0.00016438,2]
[425883159,1782021040000,-500.0,0.00016438,2]
[425883155,1782021040000,-500.0,0.00016438,2]
[425883154,1782021040000,-517.2954034,0.00016438,2]
[425883152,1782021040000,-500.0,0.00016438,2]
[425883158,1782021040000,-500.0,0.00016438,2]
[425883241,1782021041000,-500.0,0.00016712,2]
[425883245,1782021041000,-500.0,0.00016712,2]
[425883240,1782021041000,-500.0,0.00016712,2]
[425883244,1782021041000,-500.0,0.00016712,2]
[425883246,1782021041000,-529.03156468,0.00016712,2]
[425883239,1782021041000,-500.0,0.00016712,2]
[425883234,1782021041000,-500.0,0.00016712,2]
[425883235,1782021041000,-500.0,0.00016712,2]
[425883236,1782021041000,-500.0,0.00016712,2]
[425883237,1782021041000,-526.21417246,0.00016712,2]
[425883238,1782021041000,-500.0,0.00016712,2]
[425883243,1782021041000,-500.0,0.00016712,2]
[425883242,1782021041000,-500.0,0.00016712,2]
[425883247,1782021041000,-500.0,0.00016712,2]
[425883261,1782021041000,-360.25791843,0.00016712,2]
[425883250,1782021041000,-500.0,0.00016712,2]
[425883248,1782021041000,-500.0,0.00016712,2]
[425883251,1782021041000,-500.0,0.00016712,2]
[425883252,1782021041000,-425.41387917,0.00016712,2]
[425883254,1782021041000,-448.86452322,0.00016712,2]
[425883253,1782021041000,-504.3406961,0.00016712,2]
[425883259,1782021041000,-507.19365873,0.00016712,2]
[425883258,1782021041000,-500.0,0.00016712,2]
[425883256,1782021041000,-500.0,0.00016712,2]
[425883257,1782021041000,-528.50917953,0.00016712,2]
[425883255,1782021041000,-500.0,0.00016712,2]
[425883260,1782021041000,-516.49213995,0.00016712,2]
[425883232,1782021041000,-500.0,0.00016712,2]
[425883249,1782021041000,-500.0,0.00016712,2]
[425883230,1782021041000,-500.0,0.00016712,2]
[425883200,1782021041000,-500.0,0.00016438,2]
[425883227,1782021041000,-1576.4047,0.00016712,2]
[425883262,1782021041000,-500.0,0.00016712,2]
[425883201,1782021041000,-500.0,0.00016438,2]
[425883207,1782021041000,-500.0,0.00016438,2]
[425883202,1782021041000,-500.0,0.00016438,2]
[425883203,1782021041000,-500.0,0.00016438,2]
[425883206,1782021041000,-567.68907114,0.00016438,2]
[425883204,1782021041000,-500.0,0.00016438,2]
[425883205,1782021041000,-500.0,0.00016438,2]
[425883209,1782021041000,-500.0,0.00016438,2]
[425883211,1782021041000,-500.0,0.00016438,2]
[425883213,1782021041000,-500.0,0.00016438,2]
[425883210,1782021041000,-500.0,0.00016438,2]
[425883212,1782021041000,-500.0,0.00016438,2]
[425883214,1782021041000,-520.74794325,0.00016438,2]
[425883217,1782021041000,-500.0,0.00016438,2]
[425883215,1782021041000,-500.0,0.00016438,2]
[425883221,1782021041000,-368.66731003,0.00016438,2]
[425883218,1782021041000,-500.0,0.00016438,2]
[425883216,1782021041000,-500.0,0.00016438,2]
[425883220,1782021041000,-500.0,0.00016438,2]
[425883219,1782021041000,-500.0,0.00016438,2]
[425883224,1782021041000,-500.0,0.00016572,2]
[425883222,1782021041000,-500.0,0.00016438,2]
[425883223,1782021041000,-153.278612,0.00016438,2]
[425883226,1782021041000,-1576.4047,0.00016712,2]
[425883225,1782021041000,-2158.569806,0.00016704,2]
[425883228,1782021041000,-510.13554831,0.00016712,2]
[425883229,1782021041000,-509.3884614,0.00016712,2]
[425883233,1782021041000,-500.0,0.00016712,2]
[425883231,1782021041000,-500.0,0.00016712,2]
[425883263,1782021041000,-503.67136067,0.00016712,2]
[425883208,1782021041000,-500.0,0.00016438,2]
[425883265,1782021041000,-500.0,0.00016712,2]
[425883296,1782021041000,-500.0,0.00016712,2]
[425883303,1782021041000,-500.0,0.00016712,2]
[425883300,1782021041000,-500.0,0.00016712,2]
[425883302,1782021041000,-500.0,0.00016712,2]
[425883301,1782021041000,-500.0,0.00016712,2]
[425883304,1782021041000,-500.0,0.00016712,2]
[425883307,1782021041000,-500.0,0.00016712,2]
[425883306,1782021041000,-500.0,0.00016712,2]
[425883311,1782021041000,-500.0,0.00016712,2]
[425883305,1782021041000,-500.0,0.00016712,2]
[425883310,1782021041000,-500.0,0.00016712,2]
[425883309,1782021041000,-500.0,0.00016712,2]
[425883308,1782021041000,-500.0,0.00016712,2]
[425883297,1782021041000,-610.77300082,0.00016712,2]
[425883313,1782021041000,-500.0,0.00016712,2]
[425883316,1782021041000,-500.0,0.00016712,2]
[425883317,1782021041000,-500.0,0.00016712,2]
[425883314,1782021041000,-2537.77,0.00016712,2]
[425883315,1782021041000,-500.0,0.00016712,2]
[425883318,1782021041000,-1000.0,0.00016712,2]
[425883320,1782021041000,-501.3,0.00016712,2]
[425883319,1782021041000,-500.0,0.00016712,2]
[425883321,1782021041000,-500.0,0.00016712,2]
[425883324,1782021041000,-516.75055064,0.00016712,2]
[425883322,1782021041000,-500.0,0.00016712,2]
[425883323,1782021041000,-500.0,0.00016712,2]
[425883325,1782021041000,-500.0,0.00016712,2]
[425883326,1782021041000,-500.0,0.00016712,2]
[425883312,1782021041000,-500.0,0.00016712,2]
[425883293,1782021041000,-500.0,0.00016712,2]
[425883327,1782021041000,-598.65070454,0.00016712,2]
[425883299,1782021041000,-599.3,0.00016712,2]
[425883294,1782021041000,-500.0,0.00016712,2]
[425883266,1782021041000,-500.0,0.00016712,2]
[425883268,1782021041000,-242.47,0.00016712,2]
[425883269,1782021041000,-500.0,0.00016712,2]
[425883271,1782021041000,-500.0,0.00016712,2]
[425883272,1782021041000,-500.0,0.00016712,2]
[425883267,1782021041000,-500.0,0.00016712,2]
[425883270,1782021041000,-500.0,0.00016712,2]
[425883275,1782021041000,-500.0,0.00016712,2]
[425883273,1782021041000,-500.0,0.00016712,2]
[425883276,1782021041000,-500.0,0.00016712,2]
[425883274,1782021041000,-500.0,0.00016712,2]
[425883277,1782021041000,-500.0,0.00016712,2]
[425883278,1782021041000,-515.43706171,0.00016712,2]
[425883279,1782021041000,-3267.184926,0.00016712,2]
[425883264,1782021041000,-500.0,0.00016712,2]
[425883285,1782021041000,-3267.184926,0.00016712,2]
[425883282,1782021041000,-500.0,0.00016712,2]
[425883292,1782021041000,-500.0,0.00016712,2]
[425883287,1782021041000,-500.0,0.00016712,2]
[425883288,1782021041000,-500.0,0.00016712,2]
[425883291,1782021041000,-500.0,0.00016712,2]
[425883290,1782021041000,-500.0,0.00016712,2]
[425883298,1782021041000,-500.0,0.00016712,2]
[425883289,1782021041000,-440.0,0.00016712,2]
[425883286,1782021041000,-500.0,0.00016712,2]
[425883283,1782021041000,-500.0,0.00016712,2]
[425883281,1782021041000,-500.0,0.00016712,2]
[425883280,1782021041000,-3267.184926,0.00016712,2]
[425883284,1782021041000,-3267.184926,0.00016712,2]
[425883295,1782021041000,-500.0,0.00016712,2]
[425883358,1782021042000,-500.0,0.00016712,2]
[425883373,1782021042000,-300.0,0.00016784,2]
[425883361,1782021042000,-500.0,0.00016712,2]
[425883362,1782021042000,-500.0,0.00016712,2]
[425883365,1782021042000,-293.27216693,0.00016712,2]
[425883363,1782021042000,-500.0,0.00016712,2]
[425883367,1782021042000,-500.0,0.00016712,2]
[425883364,1782021042000,-500.0,0.00016712,2]
[425883370,1782021042000,-600.4803712,0.00016716,2]
[425883368,1782021042000,-500.0,0.00016712,2]
[425883372,1782021042000,-300.0,0.00016784,2]
[425883374,1782021042000,-300.0,0.00016784,2]
[425883379,1782021042000,-300.0,0.00016784,2]
[425883369,1782021042000,-500.0,0.00016712,2]
[425883378,1782021042000,-300.0,0.00016784,2]
[425883375,1782021042000,-300.0,0.00016784,2]
[425883376,1782021042000,-300.0,0.00016784,2]
[425883377,1782021042000,-300.0,0.00016784,2]
[425883357,1782021042000,-576.14,0.00016712,2]
[425883384,1782021042000,-300.0,0.00016784,2]
[425883382,1782021042000,-300.0,0.00016784,2]
[425883380,1782021042000,-300.0,0.00016784,2]
[425883383,1782021042000,-300.0,0.00016784,2]
[425883385,1782021042000,-500.0,0.00016846,2]
[425883381,1782021042000,-300.0,0.00016784,2]
[425883386,1782021042000,-282.16419231,0.00016881,2]
[425883391,1782021042000,-505.13637702,0.00016986,2]
[425883371,1782021042000,-286.33749326,0.00016749,2]
[425883359,1782021042000,-500.0,0.00016712,2]
[425883349,1782021042000,-500.0,0.00016712,2]
[425883353,1782021042000,-500.0,0.00016712,2]
[425883389,1782021042000,-501.26467879,0.00016986,2]
[425883329,1782021042000,-500.0,0.00016712,2]
[425883328,1782021042000,-500.0,0.00016712,2]
[425883330,1782021042000,-290.46274213,0.00016712,2]
[425883331,1782021042000,-500.0,0.00016712,2]
[425883333,1782021042000,-866.721531,0.00016712,2]
[425883334,1782021042000,-866.721531,0.00016712,2]
[425883335,1782021042000,-866.721531,0.00016712,2]
[425883332,1782021042000,-500.0,0.00016712,2]
[425883337,1782021042000,-866.721537,0.00016712,2]
[425883336,1782021042000,-500.0,0.00016712,2]
[425883338,1782021042000,-500.0,0.00016712,2]
[425883339,1782021042000,-398.920994,0.00016712,2]
[425883341,1782021042000,-500.0,0.00016712,2]
[425883342,1782021042000,-398.920994,0.00016712,2]
[425883340,1782021042000,-398.920994,0.00016712,2]
[425883344,1782021042000,-398.920994,0.00016712,2]
[425883345,1782021042000,-398.920994,0.00016712,2]
[425883346,1782021042000,-398.920994,0.00016712,2]
[425883350,1782021042000,-500.0,0.00016712,2]
[425883351,1782021042000,-500.0,0.00016712,2]
[425883347,1782021042000,-398.920984,0.00016712,2]
[425883348,1782021042000,-258.53247867,0.00016712,2]
[425883352,1782021042000,-500.0,0.00016712,2]
[425883354,1782021042000,-500.0,0.00016712,2]
[425883355,1782021042000,-509.04085,0.00016712,2]
[425883356,1782021042000,-500.0,0.00016712,2]
[425883360,1782021042000,-500.0,0.00016712,2]
[425883343,1782021042000,-398.920994,0.00016712,2]
[425883390,1782021042000,-503.7141754,0.00016986,2]
[425883388,1782021042000,-501.14837005,0.00016986,2]
[425883421,1782021042000,-508.14833466,0.00016986,2]
[425883426,1782021042000,-500.0,0.00016986,2]
[425883425,1782021042000,-500.0,0.00016986,2]
[425883427,1782021042000,-510.3276532,0.00016986,2]
[425883424,1782021042000,-514.85371696,0.00016986,2]
[425883428,1782021042000,-508.73285982,0.00016986,2]
[425883430,1782021042000,-500.0,0.00016986,2]
[425883433,1782021042000,-509.18422547,0.00016986,2]
[425883429,1782021042000,-517.06163319,0.00016986,2]
[425883432,1782021042000,-500.0,0.00016986,2]
[425883431,1782021042000,-512.35462565,0.00016986,2]
[425883435,1782021042000,-2537.77,0.00016986,2]
[425883438,1782021042000,-494.3066439,0.00016986,2]
[425883440,1782021042000,-328.2,0.00016986,2]
[425883436,1782021042000,-150.21926563,0.00016986,2]
[425883437,1782021042000,-500.0,0.00016986,2]
[425883439,1782021042000,-1001.99037754,0.00016986,2]
[425883448,1782021042000,-508.2768255,0.00016986,2]
[425883444,1782021042000,-509.11887457,0.00016986,2]
[425883442,1782021042000,-500.0,0.00016986,2]
[425883441,1782021042000,-501.3,0.00016986,2]
[425883449,1782021042000,-500.0,0.00016986,2]
[425883443,1782021042000,-500.0,0.00016986,2]
[425883447,1782021042000,-500.0,0.00016986,2]
[425883445,1782021042000,-500.0,0.00016986,2]
[425883446,1782021042000,-500.0,0.00016986,2]
[425883387,1782021042000,-180.6,0.000169,2]
[425883423,1782021042000,-500.0,0.00016986,2]
[425883422,1782021042000,-508.89560542,0.00016986,2]
[425883434,1782021042000,-500.0,0.00016986,2]
[425883417,1782021042000,-504.19309165,0.00016986,2]
[425883420,1782021042000,-161.28,0.00016986,2]
[425883394,1782021042000,-513.40286817,0.00016986,2]
[425883395,1782021042000,-500.0,0.00016986,2]
[425883396,1782021042000,-545.63803097,0.00016986,2]
[425883397,1782021042000,-500.0,0.00016986,2]
[425883392,1782021042000,-500.0,0.00016986,2]
[425883398,1782021042000,-500.0,0.00016986,2]
[425883399,1782021042000,-500.0,0.00016986,2]
[425883400,1782021042000,-329.99425591,0.00016986,2]
[425883401,1782021042000,-513.88395859,0.00016986,2]
[425883402,1782021042000,-500.0,0.00016986,2]
[425883409,1782021042000,-508.71487058,0.00016986,2]
[425883408,1782021042000,-517.34088695,0.00016986,2]
[425883410,1782021042000,-514.74999814,0.00016986,2]
[425883393,1782021042000,-500.0,0.00016986,2]
[425883416,1782021042000,-500.0,0.00016986,2]
[425883405,1782021042000,-500.0,0.00016986,2]
[425883418,1782021042000,-515.72322423,0.00016986,2]
[425883419,1782021042000,-500.0,0.00016986,2]
[425883412,1782021042000,-514.63526999,0.00016986,2]
[425883413,1782021042000,-500.0,0.00016986,2]
[425883415,1782021042000,-300.0,0.00016986,2]
[425883414,1782021042000,-500.0,0.00016986,2]
[425883404,1782021042000,-508.20778105,0.00016986,2]
[425883407,1782021042000,-510.62979568,0.00016986,2]
[425883406,1782021042000,-530.15104884,0.00016986,2]
[425883403,1782021042000,-508.9141025,0.00016986,2]
[425883411,1782021042000,-501.45467787,0.00016986,2]
[425883489,1782021043000,-239.0827488,0.00017365,2]
[425883492,1782021043000,-160.0,0.00017449,2]
[425883494,1782021043000,-500.0,0.00017534,2]
[425883495,1782021043000,-500.0,0.00017534,2]
[425883490,1782021043000,-2158.569806,0.00017378,2]
[425883482,1782021043000,-500.0,0.0001726,2]
[425883484,1782021043000,-500.0,0.0001726,2]
[425883513,1782021043000,-189.18179385,0.000176,2]
[425883485,1782021043000,-500.0,0.0001726,2]
[425883487,1782021043000,-1000.0,0.00017284,5]
[425883491,1782021043000,-500.0,0.00017394,2]
[425883483,1782021043000,-232.05,0.0001726,2]
[425883488,1782021043000,-3578.05491606,0.00017325,2]
[425883493,1782021043000,-569.42,0.00017534,2]
[425883503,1782021043000,-500.0,0.00017534,2]
[425883496,1782021043000,-2537.77,0.00017534,2]
[425883499,1782021043000,-523.54,0.00017534,2]
[425883497,1782021043000,-501.3,0.00017534,2]
[425883500,1782021043000,-278.11,0.00017534,2]
[425883501,1782021043000,-500.0,0.00017534,2]
[425883505,1782021043000,-500.0,0.00017534,2]
[425883504,1782021043000,-500.0,0.00017534,2]
[425883502,1782021043000,-500.0,0.00017534,2]
[425883506,1782021043000,-500.0,0.00017534,2]
[425883507,1782021043000,-150.334,0.00017569,2]
[425883509,1782021043000,-160.0,0.00017583,2]
[425883508,1782021043000,-160.0,0.00017583,2]
[425883510,1782021043000,-160.0,0.00017583,2]
[425883498,1782021043000,-281.44,0.00017534,2]
[425883481,1782021043000,-500.0,0.0001726,2]
[425883451,1782021043000,-160.62,0.00016986,2]
[425883477,1782021043000,-500.0,0.0001726,2]
[425883454,1782021043000,-500.0,0.00016986,2]
[425883453,1782021043000,-504.94938691,0.00016986,2]
[425883452,1782021043000,-500.0,0.00016986,2]
[425883450,1782021043000,-500.0,0.00016986,2]
[425883456,1782021043000,-500.0,0.00016986,2]
[425883455,1782021043000,-500.0,0.00016986,2]
[425883457,1782021043000,-477.82,0.00016986,2]
[425883458,1782021043000,-433.82,0.00016986,2]
[425883459,1782021043000,-500.0,0.00016986,2]
[425883460,1782021043000,-500.0,0.00016986,2]
[425883461,1782021043000,-500.0,0.00016986,2]
[425883462,1782021043000,-1418.0,0.00017062,2]
[425883463,1782021043000,-150.086,0.00017062,2]
[425883480,1782021043000,-500.0,0.0001726,2]
[425883466,1782021043000,-194.65,0.00017177,2]
[425883467,1782021043000,-196.20371954,0.00017223,7]
[425883464,1782021043000,-196.30629858,0.00017085,2]
[425883468,1782021043000,-701.44123228,0.0001726,2]
[425883469,1782021043000,-212.74604116,0.0001726,2]
[425883470,1782021043000,-500.0,0.0001726,2]
[425883471,1782021043000,-174.46381986,0.0001726,2]
[425883472,1782021043000,-500.0,0.0001726,2]
[425883473,1782021043000,-500.0,0.0001726,2]
[425883474,1782021043000,-2537.77,0.0001726,2]
[425883475,1782021043000,-501.3,0.0001726,2]
[425883478,1782021043000,-500.0,0.0001726,2]
[425883476,1782021043000,-500.0,0.0001726,2]
[425883479,1782021043000,-500.0,0.0001726,2]
[425883465,1782021043000,-500.0,0.0001712,2]
[425883512,1782021043000,-160.0,0.00017586,2]
[425883486,1782021043000,-500.0,0.0001726,2]
[425883514,1782021043000,-427.4689376,0.000176,2]
[425883541,1782021043000,-500.0,0.00017808,2]
[425883549,1782021043000,-213.43576711,0.00018,2]
[425883550,1782021043000,-192.26453874,0.00018,2]
[425883552,1782021043000,-427.4689376,0.00018,2]
[425883551,1782021043000,-189.18179385,0.00018,2]
[425883553,1782021043000,-1000.0,0.00018,2]